bitfinex-derivatives/quotes_SOLF0:USTF0_20260203
["timestamp","ask_amount","ask_price","bid_price","bid_amount"]
[1770148766499,73.97618795,99.195,99.105,70.66014915]
[1770148766500,73.97618795,99.195,99.121,70.66014915]
[1770148766697,73.97618795,99.195,99.127,70.66014915]
[1770148766998,73.97618795,99.195,99.128,9.0904]
[1770148767592,83.06078795,99.192,99.127,70.66014915]
[1770148767794,73.97618795,99.179,99.106,70.66014915]
[1770148767999,73.97618795,99.167,99.098,9.0932]
[1770148768499,73.97618795,99.159,99.084,70.66014915]
[1770148768999,83.06438795,99.153,99.086,9.0943]
[1770148769592,73.97618795,99.141,99.075,9.0953]
[1770148770194,9.0882,99.153,99.086,70.66014915]
[1770148770995,9.0891,99.143,99.086,70.66014915]
[1770148771395,83.06528795,99.143,99.081,9.0947]
[1770148773599,83.06618795,99.133,99.07,9.0958]
[1770148774205,83.06618795,99.133,99.058,9.0969]
[1770148774399,8.47543223,99.14,99.058,9.0969]
[1770148774400,73.97618795,99.121,99.058,9.0969]
[1770148774608,73.97618795,99.119,99.044,70.66014915]
[1770148775006,73.97618795,99.119,99.038,9.0987]
[1770148775007,9.0934,99.097,99.038,9.0987]
[1770148776107,73.97618795,99.106,99.038,9.0987]
[1770148776499,73.97618795,99.106,99.048,9.0978]
[1770148776901,73.97618795,99.104,99.037,9.0988]
[1770148777501,73.97618795,99.088,99.01,11.9984782]
[1770148777707,73.97618795,99.079,99.004,70.66014915]
[1770148778910,73.97618795,99.079,98.999,141.5923]
[1770148778911,73.97618795,99.079,99.013,70.66014915]
[1770148779803,73.97618795,99.079,99.024,9.1]
[1770148781110,9.0951,99.078,99.013,79.76114915]
[1770148781405,83.07128795,99.078,99.013,79.76114915]
[1770148781612,73.97618795,99.068,98.993,70.66014915]
[1770148781806,73.97618795,99.068,99.014,9.1009]
[1770148783505,73.97618795,99.068,99.0,70.66014915]
[1770148783811,73.97618795,99.089,99.017,70.66014915]
[1770148784008,73.97618795,99.089,99.032,9.0992]
[1770148784206,73.97618795,99.089,99.025,70.66014915]
[1770148784602,73.97618795,99.087,99.004,70.66014915]
[1770148785515,73.97618795,99.087,99.021,9.1002]
[1770148785516,9.095,99.079,99.021,9.1002]
[1770148786013,73.97618795,99.075,99.021,9.1002]
[1770148786306,73.97618795,99.075,99.004,70.66014915]
[1770148786702,73.97618795,99.075,99.018,9.1005]
[1770148787415,73.97618795,99.069,99.008,9.1014]
[1770148788209,73.97618795,99.063,98.999,9.1023]
[1770148788514,73.97618795,99.063,98.985,70.66014915]
[1770148789213,9.0986,99.04,98.985,70.66014915]
[1770148789415,73.97618795,99.044,98.985,70.66014915]
[1770148789710,73.97618795,99.044,98.994,9.1027]
[1770148790410,73.97618795,99.044,99.003,9.1019]
[1770148791014,73.97618795,99.044,98.992,9.1029]
[1770148792415,73.97618795,99.044,98.959,73.69017757]
[1770148793310,68.6330078,99.042,98.96,141.6475]
[1770148793510,68.6330078,99.042,98.969,73.69017757]
[1770148793908,68.6330078,99.042,98.99,9.1031]
[1770148794110,68.6330078,99.042,98.978,141.6222]
[1770148794309,68.6330078,99.042,98.98,216.0099821]
[1770148794713,9.0985,99.041,98.98,74.3906821]
[1770148795314,69.46919048,99.04,98.98,74.3906821]
[1770148795514,69.46919048,99.036,98.962,74.3906821]
[1770148795811,69.46919048,99.036,98.967,141.6381]
[1770148796210,78.56819048,99.036,98.979,9.1041]
[1770148798511,9.0998,99.027,98.965,74.3906821]
[1770148798722,69.46919048,99.036,98.965,74.3906821]
[1770148799016,69.46919048,99.033,98.975,9.1045]
[1770148799217,69.46919048,99.033,98.942,74.3906821]
[1770148799615,69.46919048,99.018,98.964,9.1055]
[1770148800115,9.101,99.014,98.953,9.1065]
[1770148800315,69.46919048,98.995,98.912,74.3906821]
[1770148800719,69.46919048,98.995,98.914,74.3906821]
[1770148801616,69.46919048,98.995,98.936,9.108]
[1770148801815,69.46919048,98.995,98.914,74.3906821]
[1770148802109,69.46919048,98.989,98.914,74.3906821]
[1770148802311,69.46919048,98.997,98.919,74.3906821]
[1770148802516,69.46919048,98.997,98.908,141.7216]
[1770148802517,69.46919048,99.017,98.936,74.3906821]
[1770148802719,8.47543223,99.02,98.936,74.3906821]
[1770148802720,69.46919048,99.014,98.936,74.3906821]
[1770148803017,69.46919048,98.995,98.909,74.3906821]
[1770148803218,69.46919048,98.979,98.909,74.3906821]
[1770148803417,69.46919048,98.999,98.931,74.3906821]
[1770148803620,8.47543223,99.02,98.956,74.3906821]
[1770148803621,69.46919048,99.02,98.956,74.3906821]
[1770148804032,141.5438,99.033,98.922,74.3906821]
[1770148804033,69.46919048,99.004,98.922,74.3906821]
[1770148804315,69.46919048,99.004,98.907,141.7228]
[1770148804316,69.46919048,99.004,98.932,74.3906821]
[1770148804522,9.1027,98.996,98.941,9.1076]
[1770148804919,69.46919048,99.023,98.939,74.3906821]
[1770148805113,69.46919048,99.023,98.957,74.3906821]
[1770148805317,69.46919048,99.044,98.973,74.3906821]
[1770148805513,69.46919048,99.044,98.993,9.1028]
[1770148805915,69.46919048,99.044,98.955,74.3906821]
[1770148806118,69.46919048,99.034,98.967,74.3906821]
[1770148806323,69.46919048,99.054,98.99,74.3906821]
[1770148806718,9.0982,99.045,98.982,9.1039]
[1770148806914,69.46919048,99.044,98.982,9.1039]
[1770148807423,69.46919048,99.066,98.992,74.3906821]
[1770148807624,69.46919048,99.049,98.971,74.3906821]
[1770148807824,69.46919048,99.026,98.948,74.3906821]
[1770148808018,69.46919048,99.026,98.95,74.3906821]
[1770148808216,9.1003,99.021,98.961,9.1058]
[1770148808420,69.46919048,99.019,98.927,74.3906821]
[1770148808621,69.46919048,99.009,98.927,74.3906821]
[1770148809025,69.46919048,99.009,98.916,141.7104]
[1770148809026,69.46919048,99.009,98.933,74.3906821]
[1770148809823,69.46919048,99.009,98.928,141.6933]
[1770148809824,9.1008,99.016,98.945,74.3906821]
[1770148810022,69.46919048,99.028,98.955,74.3906821]
[1770148810423,9.0999,99.026,98.97,9.105]
[1770148811124,69.46919048,99.028,98.97,9.105]
[1770148811320,69.46919048,99.069,98.991,74.3906821]
[1770148811523,141.518,99.052,98.952,141.6583]
[1770148811724,69.46919048,99.005,98.932,74.3906821]
[1770148811925,69.46919048,98.989,98.911,74.3906821]
[1770148812129,69.46919048,98.984,98.911,74.3906821]
[1770148812532,141.5695,99.016,98.927,74.3906821]
[1770148812533,69.46919048,99.005,98.927,74.3906821]
[1770148812728,69.46919048,99.005,98.93,74.3906821]
[1770148813027,8.49146937,99.01,98.906,141.7253]
[1770148813028,69.46919048,98.996,98.907,74.3906821]
[1770148813229,69.46919048,98.989,98.914,74.3906821]
[1770148813832,69.46919048,98.987,98.921,9.1095]
[1770148814137,69.46919048,99.009,98.931,74.3906821]
[1770148814922,69.46919048,98.999,98.912,74.3906821]
[1770148815121,69.46919048,98.999,98.917,74.3906821]
[1770148815527,69.46919048,98.988,98.917,74.3906821]
[1770148816232,69.46919048,98.988,98.926,9.109]
[1770148816424,69.46919048,98.988,98.917,74.3906821]
[1770148816830,69.46919048,98.986,98.917,74.3906821]
[1770148817631,69.46919048,98.986,98.926,141.6967]
[1770148817828,69.46919048,98.986,98.927,141.6943]
[1770148818029,69.46919048,98.986,98.939,9.1078]
[1770148818427,69.46919048,98.986,98.904,74.3906821]
[1770148818836,78.57269048,98.986,98.929,9.1087]
[1770148819132,69.46919048,98.986,98.919,141.7059]
[1770148819332,69.46919048,98.986,98.928,216.0840821]
[1770148819533,69.46919048,98.986,98.947,9.1071]
[1770148820230,69.46919048,99.009,98.947,9.1071]
[1770148820534,69.46919048,99.009,98.956,9.05810141]
[1770148820734,70.66840516,99.005,98.929,74.3906821]
[1770148820931,70.66840516,99.005,98.934,210.00000168]
[1770148821435,70.66840516,99.003,98.934,68.31490168]
[1770148821630,70.66840516,99.003,98.952,9.1066]
[1770148822231,403.3,99.015,98.946,141.6676]
[1770148822431,70.66840516,99.021,98.961,68.31490168]
[1770148822627,70.66840516,99.021,98.963,141.6437]
[1770148823530,70.66840516,99.021,98.961,68.31490168]
[1770148823930,70.66840516,99.021,98.942,68.31490168]
[1770148824529,70.66840516,99.017,98.946,141.6682]
[1770148824832,70.66840516,99.017,98.954,141.6562]
[1770148825532,70.66840516,99.017,98.961,141.6462]
[1770148825731,79.76730516,99.036,98.966,68.31490168]
[1770148825931,70.66840516,99.036,98.973,68.31490168]
[1770148826641,70.66840516,99.056,98.984,68.31490168]
[1770148827031,79.76850516,99.024,98.964,9.1055]
[1770148827333,70.66840516,99.024,98.965,68.31490168]
[1770148827529,70.66840516,99.053,98.965,68.31490168]
[1770148827729,70.66840516,99.053,98.982,9.1039]
[1770148827930,70.66840516,99.053,98.974,68.31490168]
[1770148828532,79.76660516,99.044,98.991,9.103]
[1770148828732,70.66840516,99.044,98.981,68.31490168]
[1770148829737,9.0984,99.042,98.988,9.1032]
[1770148829936,150.02656937,99.04,98.959,68.31490168]
[1770148830234,70.66840516,99.038,98.959,68.31490168]
[1770148830439,403.28,99.039,98.929,141.692]
[1770148830440,79.15987453,99.02,98.935,68.31490168]
[1770148830635,79.15987453,99.02,98.943,68.31490168]
[1770148830940,70.66840516,99.02,98.966,9.1053]
[1770148831137,70.66840516,99.02,98.959,141.6485]
[1770148831333,70.66840516,99.02,98.961,68.31490168]
[1770148831536,70.66840516,99.02,98.948,141.6651]
[1770148831834,70.66840516,99.02,98.941,68.31490168]
[1770148831835,79.15987453,99.02,98.941,68.31490168]
[1770148832842,9.1013,99.011,98.955,9.1063]
[1770148833038,9.1013,99.011,98.941,68.31490168]
[1770148833235,70.66840516,99.02,98.972,9.1047]
[1770148833441,70.66840516,99.039,98.963,68.31490168]
[1770148833838,70.66840516,99.039,98.988,9.1033]
[1770148835935,9.0997,99.028,98.978,9.1042]
[1770148836132,70.66840516,99.039,98.978,9.1042]
[1770148836545,70.66840516,99.036,98.978,9.1042]
[1770148837044,403.24,99.047,98.956,12.54717671]
[1770148837045,70.66840516,99.025,98.956,12.54717671]
[1770148837337,150.02596937,99.04,98.908,18.2213]
[1770148837338,70.66840516,99.019,98.947,68.31490168]
[1770148837547,70.66840516,99.019,98.977,9.1043]
[1770148838644,9.0992,99.033,98.985,9.1036]
[1770148838845,79.76760516,99.033,98.985,9.1036]
[1770148839047,79.76760516,99.033,98.958,68.31490168]
[1770148839241,9.1002,99.022,98.975,9.1045]
[1770148839641,79.76860516,99.022,98.958,68.31490168]
[1770148840040,70.66840516,99.012,98.941,12.54717671]
[1770148840244,70.66840516,99.009,98.943,68.31490168]
[1770148840746,141.5176,99.052,98.938,141.6795]
[1770148840747,70.66840516,99.029,98.963,68.31490168]
[1770148841647,79.76900516,99.018,98.962,9.1057]
[1770148841845,70.66840516,99.018,98.944,68.31490168]
[1770148843045,70.66840516,99.009,98.944,68.31490168]
[1770148844344,70.66840516,99.009,98.957,9.1061]
[1770148844540,8.49146937,99.03,98.935,141.6829]
[1770148844541,79.15987453,99.03,98.952,68.31490168]
[1770148844745,9.1001,99.024,98.966,9.1053]
[1770148844943,9.1001,99.024,98.954,68.31490168]
[1770148846049,70.66840516,99.03,98.974,9.1045]
[1770148846553,70.66840516,99.03,98.956,141.6538]
[1770148846554,70.66840516,99.027,98.963,9.1056]
[1770148847245,70.66840516,99.024,98.974,9.1046]
[1770148847644,70.66840516,99.024,98.983,9.1038]
[1770148847853,70.66840516,99.041,98.983,9.1038]
[1770148848251,70.66840516,99.041,98.991,9.103]
[1770148848948,9.0986,99.04,98.991,9.103]
[1770148850850,70.66840516,99.041,98.999,9.1023]
[1770148851047,9.0975,99.052,98.999,9.1023]
[1770148851246,71.58761053,99.059,98.99,68.6814945]
[1770148851450,71.58761053,99.078,99.003,68.6814945]
[1770148851752,71.58761053,99.078,99.017,68.6814945]
[1770148852153,71.58761053,99.078,99.009,9.1013]
[1770148852351,71.58761053,99.069,98.997,68.6814945]
[1770148852753,71.58761053,99.066,98.998,9.1023]
[1770148853752,71.58761053,99.062,98.998,9.1023]
[1770148854153,71.58761053,99.062,98.997,68.6814945]
[1770148854352,68.35435716,99.049,98.987,9.1033]
[1770148854557,68.35435716,99.049,98.979,71.52728242]
[1770148854761,471.55435716,99.062,98.992,71.52728242]
[1770148855050,68.35435716,99.061,99.0,71.52728242]
[1770148856446,68.35435716,99.061,99.017,9.1006]
[1770148857048,68.35435716,99.061,99.006,9.1016]
[1770148857550,68.35435716,99.061,99.0,71.52728242]
[1770148858149,68.35435716,99.059,99.0,71.52728242]
[1770148858353,68.35435716,99.059,98.983,71.52728242]
[1770148858554,68.35435716,99.054,98.983,71.52728242]
[1770148859253,403.16,99.053,98.983,71.52728242]
[1770148859451,77.45285716,99.041,98.984,9.1037]
[1770148859851,68.35435716,99.039,98.964,71.52728242]
[1770148860355,68.35435716,99.019,98.943,71.52728242]
[1770148860546,68.35435716,98.999,98.924,71.52728242]
[1770148860856,68.35435716,99.019,98.95,71.52728242]
[1770148861052,68.35435716,99.033,98.959,71.52728242]
[1770148861257,68.35435716,99.059,98.979,213.14808242]
[1770148862255,68.35435716,99.093,99.007,71.52728242]
[1770148862456,68.35435716,99.093,99.006,141.5812]
[1770148862457,68.35435716,99.093,99.016,71.52728242]
[1770148862653,68.35435716,99.093,99.026,71.52728242]
[1770148862853,68.35435716,99.121,99.051,71.52728242]
[1770148863054,68.35435716,99.141,99.067,71.52728242]
[1770148863260,68.35435716,99.141,99.089,9.094]
[1770148863648,77.44155716,99.164,99.086,80.62158242]
[1770148863849,68.35435716,99.164,99.086,80.62158242]
[1770148864057,76.84582653,99.16,99.086,80.62158242]
[1770148864449,9.0881,99.154,99.086,80.62158242]
[1770148864653,76.84582653,99.16,99.097,9.0933]
[1770148864851,68.35435716,99.16,99.097,9.0933]
[1770148865355,141.3383,99.177,99.086,71.52728242]
[1770148865356,68.35435716,99.158,99.086,71.52728242]
[1770148865759,9.0879,99.157,99.086,80.62158242]
[1770148865962,68.35435716,99.158,99.086,71.52728242]
[1770148866760,68.35435716,99.18,99.11,71.52728242]
[1770148866957,403.08,99.195,99.117,71.52728242]
[1770148867357,68.35435716,99.188,99.117,71.52728242]
[1770148867861,8.49146937,99.17,99.104,9.0927]
[1770148868163,8.49146937,99.17,99.105,71.52728242]
[1770148868460,9.0862,99.175,99.106,9.0925]
[1770148868664,8.46460596,99.17,99.105,71.52728242]
[1770148869167,68.35435716,99.149,99.084,71.52728242]
[1770148869665,9.0901,99.132,99.061,80.62388242]
[1770148869864,8.46460596,99.17,99.096,141.4527]
[1770148870061,68.35435716,99.186,99.102,71.52728242]
[1770148870361,68.35435716,99.169,99.102,71.52728242]
[1770148871461,68.35435716,99.169,99.104,71.52728242]
[1770148871656,68.35435716,99.169,99.107,141.4377]
[1770148871858,68.35435716,99.169,99.116,71.52728242]
[1770148872058,68.35435716,99.169,99.094,71.52728242]
[1770148872456,141.3254,99.187,99.094,71.52728242]
[1770148872457,68.35435716,99.165,99.094,71.52728242]
[1770148872655,8.46460596,99.15,99.068,71.52728242]
[1770148872858,68.35435716,99.159,99.084,141.4701]
[1770148873056,8.46460596,99.17,99.096,71.52728242]
[1770148873365,8.46460596,99.15,99.068,71.52728242]
[1770148873564,9.0889,99.146,99.083,9.0946]
[1770148873763,9.0889,99.146,99.083,80.62188242]
[1770148873962,9.09,99.134,99.083,71.52728242]
[1770148874159,8.46460596,99.13,99.039,71.52728242]
[1770148874359,68.35435716,99.136,99.077,141.4804]
[1770148874565,68.35435716,99.136,99.09,80.62118242]
[1770148874967,68.35435716,99.136,99.09,71.52728242]
[1770148875860,141.3011,99.204,99.118,71.52728242]
[1770148876066,141.3011,99.204,99.085,402.84]
[1770148876067,141.3645,99.159,99.077,71.52728242]
[1770148876267,141.3678,99.157,99.077,71.52728242]
[1770148876567,8.46460596,99.16,99.081,71.52728242]
[1770148876766,8.46460596,99.14,99.081,71.52728242]
[1770148877061,9.09,99.134,99.081,71.52728242]
[1770148877265,9.09,99.134,99.05,141.5182]
[1770148877266,9.09,99.134,99.061,71.52728242]
[1770148878067,9.09,99.134,99.062,80.62378242]
[1770148878262,9.09,99.134,99.009,141.5771]
[1770148878263,8.46460596,99.12,99.042,71.52728242]
[1770148878462,8.46460596,99.08,99.01,71.52728242]
[1770148878766,58.75664879,99.078,99.01,71.52728242]
[1770148879363,9.0952,99.077,99.013,71.52728242]
[1770148879667,8.46460596,99.06,98.976,71.52728242]
[1770148879866,8.46460596,99.04,98.976,71.52728242]
[1770148880361,141.546,99.032,98.944,71.52728242]
[1770148880569,70.58621858,99.058,98.969,75.36162925]
[1770148880768,70.58621858,99.058,98.97,75.36162925]
[1770148880958,9.0974,99.053,98.98,75.36162925]
[1770148881867,70.58621858,99.058,98.986,9.1035]
[1770148882068,70.58621858,99.058,98.98,75.36162925]
[1770148882369,9.0981,99.045,98.98,75.36162925]
[1770148882667,70.80274462,99.042,98.945,75.36162925]
[1770148882859,70.80274462,99.042,98.949,75.36162925]
[1770148883061,9.0991,99.034,98.957,9.1061]
[1770148883259,70.80274462,99.028,98.958,75.36162925]
[1770148883659,70.80274462,99.028,98.96,75.36162925]
[1770148884069,8.46460596,99.01,98.934,75.36162925]
[1770148885364,8.46460596,99.01,98.938,75.36162925]
[1770148885771,8.46460596,99.01,98.925,9.1091]
[1770148885772,70.80274462,99.006,98.925,9.1091]
[1770148885970,8.46460596,98.99,98.925,9.1091]
[1770148886163,8.46460596,98.99,98.917,75.36162925]
[1770148886164,79.26735058,98.99,98.917,75.36162925]
[1770148887279,70.80274462,98.963,98.873,75.36162925]
[1770148887572,70.80274462,98.963,98.883,75.36162925]
[1770148887767,70.80274462,98.963,98.892,75.36162925]
[1770148888876,70.80274462,98.959,98.892,75.36162925]
[1770148890776,8.46460596,98.98,98.896,75.36162925]
[1770148891072,70.80274462,98.962,98.875,75.36162925]
[1770148891272,70.80274462,98.953,98.875,75.36162925]
[1770148891572,70.80274462,98.953,98.876,9.1136]
[1770148891573,8.46460596,98.94,98.876,9.1136]
[1770148891871,70.80274462,98.953,98.877,75.36162925]
[1770148892075,70.80274462,98.953,98.886,75.36162925]
[1770148892275,403.2,98.959,98.892,9.1122]
[1770148892674,403.2,98.959,98.893,75.36162925]
[1770148892874,70.80274462,98.974,98.885,141.7549]
[1770148892875,70.80274462,98.974,98.903,75.36162925]
[1770148893071,8.46460596,98.98,98.909,75.36162925]
[1770148893377,9.1052,98.968,98.909,75.36162925]
[1770148894076,70.80274462,98.968,98.883,75.36162925]
[1770148894376,8.46460596,98.98,98.894,75.36162925]
[1770148894570,70.80274462,98.979,98.894,75.36162925]
[1770148894770,70.80274462,98.979,98.888,141.7503]
[1770148894771,70.80274462,98.979,98.909,75.36162925]
[1770148895276,8.46460596,99.0,98.895,141.7411]
[1770148895277,79.90554462,98.994,98.913,75.36162925]
[1770148896187,70.80274462,98.994,98.923,75.36162925]
[1770148896376,403.32,99.006,98.935,75.36162925]
[1770148896782,70.80274462,99.036,98.959,75.36162925]
[1770148897179,8.46460596,99.03,98.959,75.36162925]
[1770148897387,70.80274462,99.029,98.959,75.36162925]
[1770148897681,70.80274462,99.049,98.963,75.36162925]
[1770148897982,70.80274462,99.049,98.981,9.1039]
[1770148898180,70.80274462,99.042,98.965,75.36162925]
[1770148898375,9.0989,99.036,98.969,9.1051]
[1770148898577,70.80274462,99.042,98.949,141.6634]
[1770148898578,70.80274462,99.042,98.97,75.36162925]
[1770148899181,70.80274462,99.042,98.988,9.1032]
[1770148899786,9.098,99.047,98.949,75.36162925]
[1770148899787,70.80274462,99.029,98.949,75.36162925]
[1770148900085,70.80274462,99.021,98.949,75.36162925]
[1770148900580,70.80274462,99.018,98.949,75.36162925]
[1770148900777,79.26735058,99.01,98.949,75.36162925]
[1770148901281,9.103,98.993,98.926,84.47062925]
[1770148901583,79.26735058,99.01,98.932,75.36162925]
[1770148902087,412.4007,99.017,98.94,75.36162925]
[1770148902288,9.1007,99.017,98.94,75.36162925]
[1770148902682,79.90344462,99.017,98.943,84.46902925]
[1770148902878,79.90344462,99.017,98.943,75.36162925]
[1770148903381,70.80274462,99.017,98.947,75.36162925]
[1770148903581,9.0997,99.028,98.955,75.36162925]
[1770148903891,70.80274462,99.038,98.96,75.36162925]
[1770148904891,79.26735058,99.03,98.96,75.36162925]
[1770148905089,70.80274462,99.022,98.929,75.36162925]
[1770148905278,9.1015,99.009,98.941,75.36162925]
[1770148905886,9.1023,99.0,98.942,9.1075]
[1770148906083,9.1023,99.0,98.942,84.46912925]
[1770148906689,9.1023,99.0,98.942,75.36162925]
[1770148906889,70.80274462,99.003,98.942,75.36162925]
[1770148907287,70.80274462,99.003,98.942,84.46912925]
[1770148907891,70.80274462,99.003,98.955,9.1063]
[1770148908593,9.1023,98.999,98.942,75.36162925]
[1770148908894,70.80274462,99.003,98.942,75.36162925]
[1770148910986,70.80274462,99.003,98.954,9.1065]
[1770148911395,70.80274462,99.003,98.942,75.36162925]
[1770148911689,9.1031,98.991,98.942,75.36162925]
[1770148912093,70.80274462,99.003,98.942,75.36162925]
[1770148912794,77.94034514,99.0,98.937,9.108]
[1770148913297,77.94034514,99.0,98.925,70.64170919]
[1770148913298,9.1033,98.989,98.928,9.1088]
[1770148913494,68.83814514,98.988,98.925,70.64170919]
[1770148913893,9.1049,98.971,98.913,9.1102]
[1770148914090,68.83814514,98.984,98.911,141.7173]
[1770148914294,472.6266606,99.005,98.927,74.1848588]
[1770148914495,9.1022,99.001,98.943,9.1074]
[1770148914695,472.6266606,99.005,98.934,74.1848588]
[1770148915195,69.3066606,99.005,98.934,74.1848588]
[1770148915397,69.3066606,99.029,98.953,141.657]
[1770148915690,69.3066606,99.029,98.946,141.6682]
[1770148915691,69.3066606,99.029,98.954,74.1848588]
[1770148916086,9.1005,99.019,98.961,9.1058]
[1770148916488,9.1005,99.019,98.969,9.105]
[1770148917996,69.3066606,99.018,98.959,9.106]
[1770148918299,9.1014,99.01,98.954,74.1848588]
[1770148918597,69.3066606,99.018,98.954,74.1848588]
[1770148918797,69.3066606,99.013,98.956,9.1063]
[1770148919789,9.1016,99.007,98.956,9.1063]
[1770148919995,69.3066606,99.013,98.954,74.1848588]
[1770148920191,69.3066606,99.009,98.935,74.1848588]
[1770148920696,8.46460596,99.01,98.93,141.6911]
[1770148920697,69.3066606,99.007,98.93,141.6911]
[1770148920901,69.3066606,99.007,98.931,74.1848588]
[1770148921104,69.3066606,99.007,98.943,74.1848588]
[1770148921299,69.3066606,99.007,98.945,74.1848588]
[1770148921500,69.3066606,99.05,98.989,74.1848588]
[1770148921704,69.3066606,99.05,98.998,9.1023]
[1770148921901,69.3066606,99.05,98.989,74.1848588]
[1770148921902,69.3066606,99.05,98.99,141.6047]
[1770148922102,69.3066606,99.072,99.015,9.1008]
[1770148922303,69.3066606,99.095,99.021,74.1848588]
[1770148922502,141.4911,99.07,98.999,74.1848588]
[1770148922807,69.3066606,99.068,98.999,74.1848588]
[1770148923307,8.46460596,99.08,99.009,74.1848588]
[1770148923505,69.3066606,99.088,99.025,74.1848588]
[1770148923799,69.3066606,99.088,98.992,141.6014]
[1770148923800,69.3066606,99.113,99.045,74.1848588]
[1770148924403,8.46460596,99.12,99.045,74.1848588]
[1770148924404,69.3066606,99.138,99.045,74.1848588]
[1770148924800,69.3066606,99.166,99.071,74.1848588]
[1770148925107,69.3066606,99.188,99.091,74.1848588]
[1770148925603,69.3066606,99.214,99.111,74.1848588]
[1770148926108,69.3066606,99.199,99.111,74.1848588]
[1770148926303,77.77126656,99.18,99.071,74.1848588]
[1770148926502,8.46460596,99.16,99.071,74.1848588]
[1770148926698,77.77126656,99.16,99.071,74.1848588]
[1770148927505,8.46460596,99.14,99.071,74.1848588]
[1770148927809,69.3066606,99.119,99.03,74.1848588]
[1770148928605,221.02,99.135,99.03,74.1848588]
[1770148928801,290.3266606,99.135,99.03,82.64946476]
[1770148929401,69.3066606,99.134,99.03,74.1848588]
[1770148929607,69.3066606,99.119,99.03,74.1848588]
[1770148929805,8.46460596,99.1,99.03,74.1848588]
[1770148930410,8.48029134,99.1,99.03,74.1848588]
[1770148930906,77.78695194,99.1,99.03,74.1848588]
[1770148931113,77.78695194,99.1,98.936,30.38]
[1770148931114,69.3066606,99.079,98.985,74.1848588]
[1770148931610,77.78695194,99.06,98.985,74.1848588]
[1770148932109,77.78695194,99.08,98.985,74.1848588]
[1770148933206,8.48029134,99.06,98.985,74.1848588]
[1770148934107,8.48029134,99.06,98.94,89.08029134]
[1770148934108,69.3066606,99.059,98.941,74.1848588]
[1770148934412,69.3066606,99.039,98.941,74.1848588]
[1770148935711,77.78695194,99.03,98.941,74.1848588]
[1770148936811,8.48029134,99.05,98.941,74.1848588]
[1770148937010,8.48029134,99.07,98.961,74.1848588]
[1770148937316,403.06,99.076,98.981,74.1848588]
[1770148937516,69.3066606,99.085,98.981,74.1848588]
[1770148937818,69.3066606,99.108,99.001,74.1848588]
[1770148938108,69.3066606,99.108,98.96,8.48029134]
[1770148938109,69.3066606,99.134,99.021,74.1848588]
[1770148938318,69.3066606,99.134,99.041,74.1848588]
[1770148938816,69.3066606,99.158,99.051,74.1848588]
[1770148939214,69.3066606,99.149,99.051,74.1848588]
[1770148940115,77.78695194,99.13,99.051,74.1848588]
[1770148940412,77.78695194,99.13,99.011,69.75014036]
[1770148941112,8.48029134,99.11,99.011,69.75014036]
[1770148941313,82.17669967,99.11,99.011,69.75014036]
[1770148941913,73.69640833,99.11,99.011,69.75014036]
[1770148942310,82.17669967,99.11,99.011,69.75014036]
[1770148943916,82.17669967,99.09,99.011,69.75014036]
[1770148944821,73.69640833,99.09,99.011,69.75014036]
[1770148945712,8.48029134,99.11,99.011,69.75014036]
[1770148945917,82.17669967,99.11,99.011,69.75014036]
[1770148950016,73.69640833,99.11,99.011,69.75014036]
[1770148950616,8.48029134,99.13,99.011,69.75014036]
[1770148950818,73.69640833,99.129,99.011,69.75014036]
[1770148951823,9.0912,99.121,99.042,69.75014036]
[1770148952234,73.69640833,99.129,99.037,141.5377]
[1770148952235,73.69640833,99.129,99.052,69.75014036]
[1770148952629,73.69640833,99.129,99.06,141.5046]
[1770148953531,73.69640833,99.129,99.061,69.75014036]
[1770148954632,73.69640833,99.129,99.067,9.096]
[1770148954929,73.69640833,99.129,99.061,69.75014036]
[1770148954930,73.69640833,99.129,99.068,141.4934]
[1770148955132,73.69640833,99.15,99.078,69.75014036]
[1770148955635,82.78490833,99.15,99.092,9.0937]
[1770148955833,73.69640833,99.15,99.078,69.75014036]
[1770148956335,73.69640833,99.139,99.058,141.5076]
[1770148956528,73.69640833,99.135,99.054,69.75014036]
[1770148956934,9.0921,99.111,99.054,69.75014036]
[1770148957234,73.69640833,99.099,99.028,69.75014036]
[1770148957431,73.69640833,99.099,99.016,141.5674]
[1770148957624,8.48029134,99.08,99.014,69.75014036]
[1770148957830,8.48029134,99.06,98.99,69.75014036]
[1770148958034,82.17669967,99.06,98.99,69.75014036]
[1770148958434,82.17669967,99.06,98.992,69.75014036]
[1770148958625,82.17669967,99.06,98.979,141.6201]
[1770148958626,8.48029134,99.08,99.005,69.75014036]
[1770148958834,73.69640833,99.083,99.007,69.75014036]
[1770148959334,73.69640833,99.083,99.023,9.1]
[1770148959931,73.69640833,99.083,98.976,12.36887157]